[Event "*** SCC Grand Prix: Titled Tuesday Blitz"]
[Site "Chess.com"]
[Date "2020.06.23"]
[Round "2"]
[White "Kaua18"]
[Black "Barmen_EV"]
[Result "0-1"]
[WhiteElo "2232"]
[BlackElo "2453"]
[TimeControl "180+1"]
[EndTime "10:18:59 PDT"]
[Termination "Barmen_EV won on time"]

1. d4 {[%clk 0:03:00.9]} 1... d5 {[%clk 0:02:38.7]} 2. Nf3 {[%clk 0:03:00.9]}
2... Nf6 {[%clk 0:02:38.6]} 3. Bf4 {[%clk 0:02:59.3]} 3... c5 {[%clk 0:02:38.4]}
4. e3 {[%clk 0:02:59.4]} 4... Nc6 {[%clk 0:02:39.3]} 5. h3 {[%clk 0:02:59.3]}
5... Qb6 {[%clk 0:02:37]} 6. Qc1 {[%clk 0:02:57.3]} 6... cxd4 {[%clk 0:02:36.2]}
7. exd4 {[%clk 0:02:56.2]} 7... Nxd4 {[%clk 0:02:37.1]} 8. Nxd4 {[%clk 0:02:55]}
8... Qxd4 {[%clk 0:02:38]} 9. Be3 {[%clk 0:02:55.9]} 9... Qe5 {[%clk 0:02:28.5]}
10. Nd2 {[%clk 0:02:55.7]} 10... e6 {[%clk 0:02:24.9]} 11. Nf3 {[%clk
0:02:55.6]} 11... Qc7 {[%clk 0:02:24.9]} 12. c4 {[%clk 0:02:42.6]} 12... Bb4+
{[%clk 0:02:23.6]} 13. Nd2 {[%clk 0:02:41.3]} 13... O-O {[%clk 0:02:20.3]} 14.
cxd5 {[%clk 0:02:40.2]} 14... Qxc1+ {[%clk 0:02:21.2]} 15. Rxc1 {[%clk
0:02:40.4]} 15... Nxd5 {[%clk 0:02:22.1]} 16. Bc4 {[%clk 0:02:35.3]} 16... Nxe3
{[%clk 0:02:20.7]} 17. fxe3 {[%clk 0:02:36.2]} 17... Rd8 {[%clk 0:02:20.6]} 18.
Rc2 {[%clk 0:02:36.3]} 18... b5 {[%clk 0:02:12.8]} 19. Bxb5 {[%clk 0:02:32.3]}
19... Bb7 {[%clk 0:02:13.2]} 20. Ke2 {[%clk 0:02:12.4]} 20... Bxg2 {[%clk
0:02:10.7]} 21. Rh2 {[%clk 0:02:00.1]} 21... Bd5 {[%clk 0:02:09.5]} 22. a3
{[%clk 0:01:58.4]} 22... Bd6 {[%clk 0:02:06]} 23. Rf2 {[%clk 0:01:56.3]} 23...
Rab8 {[%clk 0:01:57.6]} 24. Bd3 {[%clk 0:01:41.3]} 24... a5 {[%clk 0:01:57.2]}
25. Nc4 {[%clk 0:01:40.7]} 25... Bc7 {[%clk 0:01:41.5]} 26. e4 {[%clk
0:01:34.6]} 26... Ba8 {[%clk 0:01:28.4]} 27. Ne3 {[%clk 0:01:34]} 27... Bb6
{[%clk 0:01:24]} 28. Rf3 {[%clk 0:01:30.7]} 28... a4 {[%clk 0:01:13.2]} 29. Nc4
{[%clk 0:01:30.3]} 29... Bd4 {[%clk 0:01:12.9]} 30. Rg3 {[%clk 0:01:19.6]} 30...
Rb3 {[%clk 0:01:03.1]} 31. Kf1 {[%clk 0:00:51.1]} 31... Bxe4 {[%clk 0:00:44.1]}
32. Ke2 {[%clk 0:00:39.8]} 32... f5 {[%clk 0:00:19]} 33. Nd2 {[%clk 0:00:36.1]}
33... Rxd3 {[%clk 0:00:15.7]} 34. Rxd3 {[%clk 0:00:37]} 34... Bxd3+ {[%clk
0:00:16.1]} 35. Kxd3 {[%clk 0:00:37.9]} 35... Bxb2+ {[%clk 0:00:16.7]} 36. Ke3
{[%clk 0:00:37.5]} 36... Bxa3 {[%clk 0:00:17.5]} 37. Rc4 {[%clk 0:00:33.1]}
37... Ra8 {[%clk 0:00:14.5]} 38. Nf3 {[%clk 0:00:30.4]} 38... Bb2 {[%clk
0:00:14]} 39. Ne1 {[%clk 0:00:12.1]} 39... a3 {[%clk 0:00:14.9]} 40. Nc2 {[%clk
0:00:12.2]} 40... a2 {[%clk 0:00:15]} 41. Rc6 {[%clk 0:00:12.2]} 41... Ra3+
{[%clk 0:00:13.8]} 42. Kf4 {[%clk 0:00:11.2]} 42... Rc3 {[%clk 0:00:13.5]} 0-1

[Event "*** SCC Grand Prix: Titled Tuesday Blitz"]
[Site "Chess.com"]
[Date "2020.06.23"]
[Round "2"]
[White "Rodalquilar"]
[Black "BikingBrian"]
[Result "1-0"]
[WhiteElo "2645"]
[BlackElo "2283"]
[TimeControl "180+1"]
[EndTime "10:19:00 PDT"]
[Termination "Rodalquilar won by resignation"]

1. d4 {[%clk 0:03:00.9]} 1... Nf6 {[%clk 0:02:57.5]} 2. c4 {[%clk 0:03:01]} 2...
g6 {[%clk 0:02:55.6]} 3. Nc3 {[%clk 0:03:01]} 3... Bg7 {[%clk 0:02:56]} 4. e4
{[%clk 0:03:01]} 4... d6 {[%clk 0:02:56.5]} 5. f4 {[%clk 0:03:01]} 5... O-O
{[%clk 0:02:56.3]} 6. Nf3 {[%clk 0:03:01.3]} 6... c5 {[%clk 0:02:56.7]} 7. dxc5
{[%clk 0:03:01.8]} 7... Qa5 {[%clk 0:02:55.3]} 8. Bd3 {[%clk 0:03:02]} 8... Qxc5
{[%clk 0:02:54.9]} 9. Qe2 {[%clk 0:03:02.5]} 9... Bg4 {[%clk 0:02:52.1]} 10. Be3
{[%clk 0:03:02]} 10... Bxf3 {[%clk 0:02:47.7]} 11. Qxf3 {[%clk 0:02:57.7]} 11...
Qb4 {[%clk 0:02:33.4]} 12. O-O {[%clk 0:02:03.6]} 12... Nc6 {[%clk 0:02:22.9]}
13. Rab1 {[%clk 0:01:31.8]} 13... Qa5 {[%clk 0:02:21]} 14. a3 {[%clk 0:01:29.9]}
14... Qd8 {[%clk 0:02:18.1]} 15. h3 {[%clk 0:01:21.8]} 15... Nd7 {[%clk
0:02:18.2]} 16. Qf2 {[%clk 0:01:21.7]} 16... a5 {[%clk 0:02:12.1]} 17. Rfd1
{[%clk 0:01:09.2]} 17... a4 {[%clk 0:02:09.9]} 18. Nd5 {[%clk 0:01:09.5]} 18...
e6 {[%clk 0:02:07]} 19. Nb6 {[%clk 0:01:09.5]} 19... Nxb6 {[%clk 0:02:06.2]} 20.
Bxb6 {[%clk 0:01:10.4]} 20... Qe7 {[%clk 0:02:05.5]} 21. Bc2 {[%clk 0:01:05.8]}
21... Rfc8 {[%clk 0:01:56.3]} 22. Kh1 {[%clk 0:01:02.4]} 22... Na5 {[%clk
0:01:55.2]} 23. Bxa4 {[%clk 0:00:59.5]} 23... Nxc4 {[%clk 0:01:54.9]} 24. Bb5
{[%clk 0:00:50.7]} 24... Nxb6 {[%clk 0:01:52.5]} 25. Qxb6 {[%clk 0:00:51.6]}
25... Rc2 {[%clk 0:01:46.8]} 26. Qxd6 {[%clk 0:00:44]} 26... Qxd6 {[%clk
0:01:43.1]} 27. Rxd6 {[%clk 0:00:44.9]} 27... Rxb2 {[%clk 0:01:42.8]} 28. Rxb2
{[%clk 0:00:45.3]} 28... Bxb2 {[%clk 0:01:42.1]} 29. a4 {[%clk 0:00:46.2]} 29...
Rc8 {[%clk 0:01:34]} 30. Rd7 {[%clk 0:00:44.1]} 30... b6 {[%clk 0:01:33.9]} 31.
Rd6 {[%clk 0:00:43.5]} 31... Rb8 {[%clk 0:01:24.8]} 32. g3 {[%clk 0:00:32.1]}
32... Bc1 {[%clk 0:01:20]} 33. Kg2 {[%clk 0:00:31.6]} 33... Be3 {[%clk
0:01:20.2]} 34. Kf3 {[%clk 0:00:29.1]} 34... Bc5 {[%clk 0:01:20.2]} 35. Rc6
{[%clk 0:00:29.6]} 35... Bg1 {[%clk 0:01:13.6]} 36. Rc1 {[%clk 0:00:22.3]} 36...
Bd4 {[%clk 0:01:11.8]} 37. Rc4 {[%clk 0:00:20.9]} 37... Bg1 {[%clk 0:01:11.4]}
38. e5 {[%clk 0:00:06.1]} 38... Kf8 {[%clk 0:01:06.2]} 39. Rc7 {[%clk
0:00:06.1]} 39... Bd4 {[%clk 0:01:02.8]} 40. Kg4 {[%clk 0:00:05.7]} 40... h6
{[%clk 0:01:02.3]} 41. h4 {[%clk 0:00:06.2]} 41... Bf2 {[%clk 0:01:01.3]} 42.
Kf3 {[%clk 0:00:05.7]} 42... Bd4 {[%clk 0:01:01.1]} 43. Ke4 {[%clk 0:00:06.3]}
43... Bf2 {[%clk 0:01:00.8]} 44. Kf3 {[%clk 0:00:06.8]} 44... Bd4 {[%clk
0:01:00.7]} 45. Bc4 {[%clk 0:00:07.4]} 45... Rd8 {[%clk 0:00:54.2]} 46. g4
{[%clk 0:00:07.4]} 46... Bg1 {[%clk 0:00:50]} 47. f5 {[%clk 0:00:04.7]} 47...
gxf5 {[%clk 0:00:49.5]} 48. gxf5 {[%clk 0:00:05.6]} 48... Bd4 {[%clk 0:00:43.8]}
49. Ke4 {[%clk 0:00:05.1]} 49... exf5+ {[%clk 0:00:41.8]} 50. Kxf5 {[%clk
0:00:05.3]} 50... Re8 {[%clk 0:00:31]} 51. Rxf7+ {[%clk 0:00:05.2]} 51... Kg8
{[%clk 0:00:31.2]} 52. Rd7+ {[%clk 0:00:04.3]} 52... Kf8 {[%clk 0:00:30.8]} 53.
Rxd4 {[%clk 0:00:04.5]} 53... Re7 {[%clk 0:00:30.3]} 54. Rd8+ {[%clk 0:00:04.6]}
54... Kg7 {[%clk 0:00:30.3]} 55. e6 {[%clk 0:00:04.6]} 55... Rc7 {[%clk
0:00:29.7]} 56. Rd7+ {[%clk 0:00:05]} 56... Rxd7 {[%clk 0:00:29.2]} 57. exd7
{[%clk 0:00:05.9]} 1-0

[Event "*** SCC Grand Prix: Titled Tuesday Blitz"]
[Site "Chess.com"]
[Date "2020.06.23"]
[Round "2"]
[White "2007checkmate"]
[Black "DrVelja"]
[Result "0-1"]
[WhiteElo "2447"]
[BlackElo "2841"]
[TimeControl "180+1"]
[EndTime "10:19:02 PDT"]
[Termination "DrVelja won by resignation"]

1. Nc3 {[%clk 0:03:00.9]} 1... c5 {[%clk 0:02:58.9]} 2. Nf3 {[%clk 0:03:00.8]}
2... Nc6 {[%clk 0:02:58.3]} 3. d4 {[%clk 0:03:01.4]} 3... cxd4 {[%clk
0:02:57.9]} 4. Nxd4 {[%clk 0:03:02.3]} 4... Nf6 {[%clk 0:02:58]} 5. g3 {[%clk
0:03:02.2]} 5... g6 {[%clk 0:02:57.2]} 6. Bg2 {[%clk 0:03:02]} 6... Bg7 {[%clk
0:02:57.7]} 7. O-O {[%clk 0:03:01.9]} 7... O-O {[%clk 0:02:58.2]} 8. b3 {[%clk
0:02:53.6]} 8... d5 {[%clk 0:02:31.8]} 9. Bb2 {[%clk 0:02:38.9]} 9... e5 {[%clk
0:02:23.4]} 10. Nxc6 {[%clk 0:02:24.3]} 10... bxc6 {[%clk 0:02:23]} 11. e4
{[%clk 0:02:25.2]} 11... d4 {[%clk 0:01:45.9]} 12. Na4 {[%clk 0:02:24.9]} 12...
Ba6 {[%clk 0:01:12.6]} 13. Re1 {[%clk 0:02:23.5]} 13... Qe7 {[%clk 0:01:10.8]}
14. f4 {[%clk 0:02:15.3]} 14... Bb5 {[%clk 0:01:02.2]} 15. fxe5 {[%clk
0:02:11.8]} 15... Nd7 {[%clk 0:01:02.8]} 16. Bxd4 {[%clk 0:02:04]} 16... Bxa4
{[%clk 0:01:03.1]} 17. bxa4 {[%clk 0:02:04.9]} 17... Bxe5 {[%clk 0:01:02.9]} 18.
c3 {[%clk 0:01:51.9]} 18... Rad8 {[%clk 0:01:01.5]} 19. Qe2 {[%clk 0:01:41.9]}
19... c5 {[%clk 0:00:52]} 20. Bxe5 {[%clk 0:01:41.5]} 20... Qxe5 {[%clk
0:00:52.9]} 21. Qe3 {[%clk 0:01:40.6]} 21... Nf6 {[%clk 0:00:51.1]} 22. Rad1
{[%clk 0:01:38.6]} 22... Kg7 {[%clk 0:00:51.6]} 23. Bf3 {[%clk 0:01:20.5]} 23...
h5 {[%clk 0:00:51.1]} 24. Kg2 {[%clk 0:01:19.2]} 24... Rxd1 {[%clk 0:00:46.6]}
25. Rxd1 {[%clk 0:01:16.9]} 25... Rb8 {[%clk 0:00:47.5]} 26. Qd3 {[%clk
0:01:02]} 26... Rb2+ {[%clk 0:00:35.9]} 27. Rd2 {[%clk 0:01:01.9]} 27... Rb8
{[%clk 0:00:30.2]} 28. a5 {[%clk 0:00:46.7]} 28... Re8 {[%clk 0:00:26.6]} 29.
Re2 {[%clk 0:00:46]} 29... h4 {[%clk 0:00:25.1]} 30. g4 {[%clk 0:00:40.6]} 30...
h3+ {[%clk 0:00:22.5]} 31. Kg1 {[%clk 0:00:36.7]} 31... Nh7 {[%clk 0:00:17.3]}
32. Bh1 {[%clk 0:00:29.7]} 32... Ng5 {[%clk 0:00:16.2]} 33. Qe3 {[%clk
0:00:24.4]} 33... Rb8 {[%clk 0:00:12.1]} 34. Re1 {[%clk 0:00:20.6]} 34... Rb2
{[%clk 0:00:11.6]} 35. Re2 {[%clk 0:00:20.2]} 35... Rb1+ {[%clk 0:00:11.5]} 36.
Re1 {[%clk 0:00:20.4]} 36... Rxe1+ {[%clk 0:00:10]} 37. Qxe1 {[%clk 0:00:21.3]}
37... Qf4 {[%clk 0:00:10.1]} 38. Qe2 {[%clk 0:00:16.5]} 38... Qc1+ {[%clk
0:00:07.9]} 39. Kf2 {[%clk 0:00:15.3]} 39... Qxh1 {[%clk 0:00:06.8]} 40. Kg3
{[%clk 0:00:15.9]} 40... Qg2+ {[%clk 0:00:05.9]} 41. Qxg2 {[%clk 0:00:15.5]}
41... hxg2 {[%clk 0:00:06.8]} 42. Kxg2 {[%clk 0:00:16.4]} 42... Nxe4 {[%clk
0:00:07.5]} 43. c4 {[%clk 0:00:15.9]} 43... Nd6 {[%clk 0:00:07.9]} 44. Kf3
{[%clk 0:00:16.1]} 44... Nxc4 {[%clk 0:00:08.8]} 45. Ke4 {[%clk 0:00:16.7]}
45... Nxa5 {[%clk 0:00:08.9]} 46. Kd5 {[%clk 0:00:17.3]} 46... c4 {[%clk
0:00:09.5]} 47. Kd4 {[%clk 0:00:17.9]} 47... f5 {[%clk 0:00:09.9]} 48. gxf5
{[%clk 0:00:18.1]} 48... gxf5 {[%clk 0:00:10.8]} 49. a4 {[%clk 0:00:18.5]} 49...
f4 {[%clk 0:00:11.4]} 50. h4 {[%clk 0:00:16.3]} 50... Kh6 {[%clk 0:00:10.7]} 0-1

[Event "*** SCC Grand Prix: Titled Tuesday Blitz"]
[Site "Chess.com"]
[Date "2020.06.23"]
[Round "2"]
[White "Oleksandr_Bortnyk"]
[Black "ruslansezdbekov"]
[Result "1-0"]
[WhiteElo "2906"]
[BlackElo "2563"]
[TimeControl "180+1"]
[EndTime "10:19:03 PDT"]
[Termination "Oleksandr_Bortnyk won by checkmate"]

1. e4 {[%clk 0:03:00.9]} 1... e5 {[%clk 0:02:59.5]} 2. Nf3 {[%clk 0:02:59.6]}
2... Nc6 {[%clk 0:02:59.3]} 3. Bc4 {[%clk 0:02:59.5]} 3... Nf6 {[%clk
0:02:58.8]} 4. Ng5 {[%clk 0:02:59.5]} 4... d5 {[%clk 0:02:57.9]} 5. exd5 {[%clk
0:03:00.4]} 5... Na5 {[%clk 0:02:57.6]} 6. Bb5+ {[%clk 0:03:01]} 6... c6 {[%clk
0:02:57.6]} 7. dxc6 {[%clk 0:03:01.9]} 7... bxc6 {[%clk 0:02:58.5]} 8. Bd3
{[%clk 0:03:02.6]} 8... Bc5 {[%clk 0:02:55.3]} 9. Qf3 {[%clk 0:02:42.2]} 9...
O-O {[%clk 0:02:51.2]} 10. Nc3 {[%clk 0:02:36.1]} 10... h6 {[%clk 0:02:48.4]}
11. Nge4 {[%clk 0:02:33.6]} 11... Nxe4 {[%clk 0:02:46.2]} 12. Nxe4 {[%clk
0:02:32.2]} 12... Bb6 {[%clk 0:02:42.9]} 13. b4 {[%clk 0:02:02.1]} 13... Nb7
{[%clk 0:02:37.1]} 14. Bb2 {[%clk 0:01:59.1]} 14... f5 {[%clk 0:02:36]} 15. Bc4+
{[%clk 0:01:59.4]} 15... Kh7 {[%clk 0:02:26.2]} 16. Ng3 {[%clk 0:01:49.7]} 16...
Nd6 {[%clk 0:02:17.8]} 17. Bb3 {[%clk 0:01:46.5]} 17... f4 {[%clk 0:01:24.9]}
18. Qd3+ {[%clk 0:01:07.3]} 18... e4 {[%clk 0:00:59.9]} 19. Nxe4 {[%clk
0:00:52.4]} 19... Nxe4 {[%clk 0:00:50.7]} 20. Qxe4+ {[%clk 0:00:53.3]} 20... Bf5
{[%clk 0:00:50.1]} 21. Qf3 {[%clk 0:00:44]} 21... Re8+ {[%clk 0:00:42.1]} 22.
Kd1 {[%clk 0:00:44.4]} 22... Qg5 {[%clk 0:00:41.9]} 23. h4 {[%clk 0:00:31.2]}
23... Qg6 {[%clk 0:00:34.6]} 24. Kc1 {[%clk 0:00:31.5]} 24... Be4 {[%clk
0:00:26.4]} 25. Qxf4 {[%clk 0:00:28.3]} 25... Bxg2 {[%clk 0:00:18.6]} 26. Bf7
{[%clk 0:00:19.3]} 26... Qe4 {[%clk 0:00:11.9]} 27. Qxe4+ {[%clk 0:00:19.2]}
27... Rxe4 {[%clk 0:00:10.9]} 28. Rd1 {[%clk 0:00:16.9]} 28... Bf3 {[%clk
0:00:09.6]} 29. Rg1 {[%clk 0:00:13]} 29... Bg4 {[%clk 0:00:07.1]} 30. Bc3 {[%clk
0:00:09]} 30... Rf8 {[%clk 0:00:06.4]} 31. Bb3 {[%clk 0:00:05.9]} 31... Bxf2
{[%clk 0:00:06.2]} 32. Rg2 {[%clk 0:00:06.4]} 32... Bh3 {[%clk 0:00:04.3]} 33.
Rxg7+ {[%clk 0:00:06.1]} 33... Kh8 {[%clk 0:00:03.5]} 34. Rg8+ {[%clk
0:00:05.7]} 34... Kh7 {[%clk 0:00:03.2]} 35. Rxf8 {[%clk 0:00:06.3]} 35... Bd4
{[%clk 0:00:02.9]} 36. Bxd4 {[%clk 0:00:06.1]} 36... Rxd4 {[%clk 0:00:03.8]} 37.
Kb2 {[%clk 0:00:05.2]} 37... Kg6 {[%clk 0:00:03.8]} 38. Rg1+ {[%clk 0:00:04.5]}
38... Kh5 {[%clk 0:00:04.7]} 39. Rf6 {[%clk 0:00:04.2]} 39... Kxh4 {[%clk
0:00:05.6]} 40. Rxh6# {[%clk 0:00:03.7]} 1-0

[Event "*** SCC Grand Prix: Titled Tuesday Blitz"]
[Site "Chess.com"]
[Date "2020.06.23"]
[Round "2"]
[White "profofchess"]
[Black "Carolina-moon"]
[Result "1-0"]
[WhiteElo "2381"]
[BlackElo "2029"]
[TimeControl "180+1"]
[EndTime "10:19:05 PDT"]
[Termination "profofchess won on time"]

1. e4 {[%clk 0:03:00.9]} 1... c5 {[%clk 0:02:58.9]} 2. Nf3 {[%clk 0:03:00.7]}
2... d6 {[%clk 0:02:58.7]} 3. c3 {[%clk 0:03:00.8]} 3... Nf6 {[%clk 0:02:58.7]}
4. Bc4 {[%clk 0:03:00.9]} 4... Nxe4 {[%clk 0:02:45.8]} 5. Qa4+ {[%clk
0:02:59.8]} 5... Nc6 {[%clk 0:02:25.9]} 6. Bxf7+ {[%clk 0:03:00.7]} 6... Kxf7
{[%clk 0:02:25.9]} 7. Qxe4 {[%clk 0:03:01.6]} 7... e6 {[%clk 0:02:24.2]} 8. d4
{[%clk 0:03:00.5]} 8... Be7 {[%clk 0:01:58.6]} 9. O-O {[%clk 0:02:45.2]} 9... d5
{[%clk 0:01:53.9]} 10. Ne5+ {[%clk 0:02:36.2]} 10... Nxe5 {[%clk 0:01:50]} 11.
Qxe5 {[%clk 0:02:37.1]} 11... Bf6 {[%clk 0:01:45.1]} 12. Qh5+ {[%clk 0:02:28.9]}
12... g6 {[%clk 0:01:44.4]} 13. Qf3 {[%clk 0:02:29.1]} 13... Kg7 {[%clk
0:01:36.1]} 14. dxc5 {[%clk 0:02:13.3]} 14... Rf8 {[%clk 0:01:32.9]} 15. Rd1
{[%clk 0:02:09.2]} 15... Bd7 {[%clk 0:01:26.2]} 16. Qh3 {[%clk 0:02:05.1]} 16...
Kg8 {[%clk 0:01:17.6]} 17. Bh6 {[%clk 0:02:03.4]} 17... Rf7 {[%clk 0:01:09.9]}
18. Qd3 {[%clk 0:01:54.9]} 18... Qe7 {[%clk 0:01:07.5]} 19. b4 {[%clk
0:01:53.1]} 19... a6 {[%clk 0:00:55]} 20. Nd2 {[%clk 0:01:51.4]} 20... Bc6
{[%clk 0:00:41.9]} 21. a4 {[%clk 0:01:41.3]} 21... e5 {[%clk 0:00:38.6]} 22. Nb3
{[%clk 0:01:31.8]} 22... e4 {[%clk 0:00:35.6]} 23. Qe3 {[%clk 0:01:27]} 23...
Re8 {[%clk 0:00:25.2]} 24. Nd4 {[%clk 0:01:26.8]} 24... Bxd4 {[%clk 0:00:21.3]}
25. Rxd4 {[%clk 0:01:10.6]} 25... Qh4 {[%clk 0:00:14.6]} 26. Bg5 {[%clk
0:00:50.3]} 26... Qg4 {[%clk 0:00:13.5]} 27. Qg3 {[%clk 0:00:46.6]} 27... Qf5
{[%clk 0:00:10.9]} 28. Be3 {[%clk 0:00:45.7]} 28... Ref8 {[%clk 0:00:08.4]} 29.
h3 {[%clk 0:00:41.8]} 29... Bd7 {[%clk 0:00:08]} 30. c4 {[%clk 0:00:34.6]} 30...
dxc4 {[%clk 0:00:06.9]} 31. Rxc4 {[%clk 0:00:34.6]} 31... Be6 {[%clk 0:00:07.4]}
32. Rd4 {[%clk 0:00:34.2]} 32... Qf6 {[%clk 0:00:07.3]} 33. b5 {[%clk 0:00:27]}
33... Bf5 {[%clk 0:00:06]} 34. Rc1 {[%clk 0:00:23.1]} 34... axb5 {[%clk
0:00:06.9]} 35. axb5 {[%clk 0:00:23]} 35... Qe6 {[%clk 0:00:05.2]} 36. c6 {[%clk
0:00:20.6]} 36... bxc6 {[%clk 0:00:05.2]} 37. bxc6 {[%clk 0:00:20.3]} 37... Qb3
{[%clk 0:00:04.8]} 38. c7 {[%clk 0:00:17.9]} 38... Bc8 {[%clk 0:00:04.7]} 39.
Rd8 {[%clk 0:00:17.1]} 39... Qa3 {[%clk 0:00:03.3]} 40. Rxf8+ {[%clk 0:00:11.2]}
40... Rxf8 {[%clk 0:00:03.5]} 41. Qe5 {[%clk 0:00:11.2]} 41... Ba6 {[%clk
0:00:03.1]} 42. Re1 {[%clk 0:00:10.4]} 42... Qd3 {[%clk 0:00:02.5]} 43. Bd4
{[%clk 0:00:10.4]} 1-0

[Event "*** SCC Grand Prix: Titled Tuesday Blitz"]
[Site "Chess.com"]
[Date "2020.06.23"]
[Round "2"]
[White "Sueetin"]
[Black "TigrVShlyape"]
[Result "0-1"]
[WhiteElo "2347"]
[BlackElo "2910"]
[TimeControl "180+1"]
[EndTime "10:19:09 PDT"]
[Termination "TigrVShlyape won on time"]

1. d4 {[%clk 0:03:00.9]} 1... Nf6 {[%clk 0:02:58.7]} 2. c4 {[%clk 0:03:00.6]}
2... g6 {[%clk 0:02:58.5]} 3. Nc3 {[%clk 0:03:00.3]} 3... Bg7 {[%clk 0:02:58.4]}
4. Nf3 {[%clk 0:03:00.1]} 4... d6 {[%clk 0:02:58.1]} 5. e4 {[%clk 0:03:00.5]}
5... O-O {[%clk 0:02:57.1]} 6. Be2 {[%clk 0:03:00.6]} 6... e5 {[%clk 0:02:55.9]}
7. d5 {[%clk 0:02:59.8]} 7... Na6 {[%clk 0:02:53.8]} 8. Bg5 {[%clk 0:02:59.1]}
8... h6 {[%clk 0:02:51.9]} 9. Bh4 {[%clk 0:02:59]} 9... Nc5 {[%clk 0:02:51.7]}
10. Nd2 {[%clk 0:02:55.8]} 10... a5 {[%clk 0:02:50.3]} 11. O-O {[%clk
0:02:45.7]} 11... Bd7 {[%clk 0:02:48]} 12. b3 {[%clk 0:02:42.6]} 12... c6 {[%clk
0:02:40.2]} 13. dxc6 {[%clk 0:02:26.7]} 13... bxc6 {[%clk 0:02:37.1]} 14. Qc2
{[%clk 0:02:11.7]} 14... Ne6 {[%clk 0:02:35.5]} 15. Rfd1 {[%clk 0:01:56.1]}
15... Nd4 {[%clk 0:02:33.2]} 16. Qb2 {[%clk 0:01:55.7]} 16... g5 {[%clk
0:02:32.9]} 17. Bg3 {[%clk 0:01:54.8]} 17... c5 {[%clk 0:02:33.3]} 18. Nf1
{[%clk 0:01:51.8]} 18... h5 {[%clk 0:02:26.6]} 19. f3 {[%clk 0:01:39.9]} 19...
h4 {[%clk 0:02:26.3]} 20. Bf2 {[%clk 0:01:39.5]} 20... Nh5 {[%clk 0:02:26.8]}
21. Ne3 {[%clk 0:01:36.4]} 21... Nf4 {[%clk 0:02:25.4]} 22. Bf1 {[%clk
0:01:34.8]} 22... h3 {[%clk 0:02:21.5]} 23. g3 {[%clk 0:01:18.4]} 23... Ng6
{[%clk 0:01:40.4]} 24. Kh1 {[%clk 0:01:18.3]} 24... Qf6 {[%clk 0:01:23.3]} 25.
Be2 {[%clk 0:01:12.3]} 25... Ne7 {[%clk 0:01:17]} 26. Ncd5 {[%clk 0:01:04.9]}
26... Nxd5 {[%clk 0:01:16.2]} 27. Nxd5 {[%clk 0:01:03]} 27... Qh6 {[%clk
0:01:15.1]} 28. Bxd4 {[%clk 0:00:33.3]} 28... cxd4 {[%clk 0:01:08.1]} 29. Nb6
{[%clk 0:00:18.1]} 29... Ra7 {[%clk 0:01:06.1]} 30. Nxd7 {[%clk 0:00:18.3]}
30... Rxd7 {[%clk 0:01:05.2]} 31. Qd2 {[%clk 0:00:19.2]} 31... Ra7 {[%clk
0:00:58.5]} 32. a3 {[%clk 0:00:18.9]} 32... f5 {[%clk 0:00:51.4]} 33. Bd3 {[%clk
0:00:18.1]} 33... f4 {[%clk 0:00:42.3]} 34. g4 {[%clk 0:00:18]} 34... Rfa8
{[%clk 0:00:39.4]} 35. Qb2 {[%clk 0:00:16.6]} 35... Qh4 {[%clk 0:00:37.8]} 36.
Kg1 {[%clk 0:00:16.3]} 36... Bf8 {[%clk 0:00:36.9]} 37. b4 {[%clk 0:00:16.3]}
37... axb4 {[%clk 0:00:34.1]} 38. axb4 {[%clk 0:00:17.2]} 38... Qh7 {[%clk
0:00:30.5]} 39. b5 {[%clk 0:00:11.6]} 39... Qb7 {[%clk 0:00:29.7]} 40. Rxa7
{[%clk 0:00:06.8]} 40... Rxa7 {[%clk 0:00:28.8]} 41. Rb1 {[%clk 0:00:07.1]}
41... Qb6 {[%clk 0:00:28.7]} 42. Qb3 {[%clk 0:00:06.5]} 42... Kg7 {[%clk
0:00:27.9]} 43. c5 {[%clk 0:00:04.9]} 43... dxc5 {[%clk 0:00:27]} 44. Qd5 {[%clk
0:00:05.2]} 44... Qd6 {[%clk 0:00:27]} 45. b6 {[%clk 0:00:02.6]} 45... Qxd5
{[%clk 0:00:27]} 46. exd5 {[%clk 0:00:03.1]} 46... Ra3 {[%clk 0:00:26.8]} 47. b7
{[%clk 0:00:02.2]} 47... Bd6 {[%clk 0:00:26]} 48. Be4 {[%clk 0:00:02.1]} 48...
d3 {[%clk 0:00:26.3]} 49. b8=Q {[%clk 0:00:01.6]} 49... Bxb8 {[%clk 0:00:25.9]}
50. Rxb8 {[%clk 0:00:02.5]} 50... Ra1+ {[%clk 0:00:26.2]} 51. Kf2 {[%clk
0:00:02.3]} 51... d2 {[%clk 0:00:26.8]} 52. Bc2 {[%clk 0:00:03]} 52... Rc1
{[%clk 0:00:26.1]} 53. Bb3 {[%clk 0:00:02.8]} 53... c4 {[%clk 0:00:25.6]} 54.
Ke2 {[%clk 0:00:03.1]} 54... cxb3 {[%clk 0:00:25.1]} 0-1